[Event "Late-Titled-Tuesday-Blitz-November-28-2023"]
[Site "Chess.com"]
[Date "2023.11.28"]
[Round "11"]
[White "TrenerChos"]
[Black "picturesquecheck"]
[Result "1/2-1/2"]
[WhiteElo "2598"]
[BlackElo "2402"]
[TimeControl "180+1"]
[EndTime "16:03:34 PST"]
[Termination "Game drawn by repetition"]

1. b3 {[%clk 0:03:00.9]} 1... Nf6 {[%clk 0:02:58.7]} 2. Bb2 {[%clk 0:03:01.8]}
2... g6 {[%clk 0:02:59.1]} 3. e4 {[%clk 0:03:00.6]} 3... d6 {[%clk 0:02:58.2]}
4. g3 {[%clk 0:02:59.6]} 4... Bg7 {[%clk 0:02:58.5]} 5. Bg2 {[%clk 0:02:59.2]}
5... O-O {[%clk 0:02:58.9]} 6. Ne2 {[%clk 0:02:59.4]} 6... c5 {[%clk 0:02:59.5]}
7. O-O {[%clk 0:02:59.3]} 7... Nc6 {[%clk 0:03:00.2]} 8. d4 {[%clk 0:02:59.2]}
8... cxd4 {[%clk 0:02:59.4]} 9. Nxd4 {[%clk 0:02:56.3]} 9... Bd7 {[%clk
0:02:58.8]} 10. Nxc6 {[%clk 0:02:53]} 10... Bxc6 {[%clk 0:02:59.7]} 11. Nd2
{[%clk 0:02:52.6]} 11... Nd7 {[%clk 0:02:58.1]} 12. Bxg7 {[%clk 0:02:49.4]}
12... Kxg7 {[%clk 0:02:59]} 13. Nc4 {[%clk 0:02:47.8]} 13... Nc5 {[%clk
0:02:58.6]} 14. Qd4+ {[%clk 0:02:46.3]} 14... Kg8 {[%clk 0:02:57.8]} 15. Rfd1
{[%clk 0:02:44.8]} 15... Rc8 {[%clk 0:02:47]} 16. e5 {[%clk 0:02:42.6]} 16...
Bxg2 {[%clk 0:02:45.3]} 17. Kxg2 {[%clk 0:02:43.5]} 17... b5 {[%clk 0:02:38.2]}
18. Ne3 {[%clk 0:02:40.9]} 18... dxe5 {[%clk 0:02:32.6]} 19. Qxe5 {[%clk
0:02:41.8]} 19... Qc7 {[%clk 0:02:13.5]} 20. Qg5 {[%clk 0:02:27.1]} 20... Qb7+
{[%clk 0:02:02.1]} 21. f3 {[%clk 0:02:23.5]} 21... Ne6 {[%clk 0:01:59.2]} 22.
Qe5 {[%clk 0:02:22]} 22... Rc5 {[%clk 0:01:53]} 23. Rd5 {[%clk 0:02:21]} 23...
Rfc8 {[%clk 0:01:51.8]} 24. Rad1 {[%clk 0:02:19.8]} 24... Rxd5 {[%clk
0:01:46.3]} 25. Nxd5 {[%clk 0:02:18.7]} 25... Rxc2+ {[%clk 0:01:44.3]} 26. Kg1
{[%clk 0:02:15.9]} 26... a6 {[%clk 0:01:41.6]} 27. Qe3 {[%clk 0:02:09.2]} 27...
Rxa2 {[%clk 0:01:27.6]} 28. h4 {[%clk 0:02:03.7]} 28... Rc2 {[%clk 0:01:18.2]}
29. h5 {[%clk 0:02:02.5]} 29... Rc5 {[%clk 0:01:11.8]} 30. Nf4 {[%clk
0:01:59.7]} 30... Qc7 {[%clk 0:00:26]} 31. h6 {[%clk 0:01:51.9]} 31... Nxf4
{[%clk 0:00:20.2]} 32. gxf4 {[%clk 0:01:44.4]} 32... Rc6 {[%clk 0:00:17.1]} 33.
Qe5 {[%clk 0:01:37.8]} 33... f6 {[%clk 0:00:14.1]} 34. Qe4 {[%clk 0:01:27.5]}
34... Rc1 {[%clk 0:00:09.3]} 35. Qd5+ {[%clk 0:01:19.4]} 35... Kf8 {[%clk
0:00:07.5]} 36. Kg2 {[%clk 0:01:15.2]} 36... Rxd1 {[%clk 0:00:07.6]} 37. Qxd1
{[%clk 0:01:15.5]} 37... Qxf4 {[%clk 0:00:07.8]} 38. Qd8+ {[%clk 0:01:15.1]}
38... Kf7 {[%clk 0:00:08.2]} 39. Qd5+ {[%clk 0:01:14.5]} 39... Kf8 {[%clk
0:00:08.5]} 40. Qa8+ {[%clk 0:01:14.2]} 40... Kf7 {[%clk 0:00:09]} 41. Qd5+
{[%clk 0:01:14.2]} 41... Kf8 {[%clk 0:00:09.5]} 42. Qa8+ {[%clk 0:00:57.9]}
42... Kf7 {[%clk 0:00:09.8]} 43. Qxa6 {[%clk 0:00:48.1]} 43... Qg5+ {[%clk
0:00:08.3]} 44. Kf2 {[%clk 0:00:44.3]} 44... Qd2+ {[%clk 0:00:08.5]} 45. Kf1
{[%clk 0:00:41.5]} 45... Qxh6 {[%clk 0:00:07.5]} 46. Qxb5 {[%clk 0:00:40.2]}
46... Qc1+ {[%clk 0:00:07.8]} 47. Kg2 {[%clk 0:00:39.6]} 47... Qd2+ {[%clk
0:00:08]} 48. Kf1 {[%clk 0:00:36.5]} 48... h5 {[%clk 0:00:08.4]} 49. Qc4+ {[%clk
0:00:35.4]} 49... Kg7 {[%clk 0:00:07.8]} 50. Qe6 {[%clk 0:00:35.3]} 50... Qc1+
{[%clk 0:00:04.6]} 51. Kg2 {[%clk 0:00:34.9]} 51... Qc7 {[%clk 0:00:05.5]} 52.
b4 {[%clk 0:00:34.3]} 52... h4 {[%clk 0:00:06.1]} 53. Kf1 {[%clk 0:00:29]} 53...
h3 {[%clk 0:00:04.8]} 54. Qxh3 {[%clk 0:00:27.8]} 54... Qc4+ {[%clk 0:00:05.1]}
55. Kg2 {[%clk 0:00:27.6]} 55... Qxb4 {[%clk 0:00:05.7]} 56. Qe6 {[%clk
0:00:27.6]} 56... Qd6 {[%clk 0:00:06.5]} 57. Qc8 {[%clk 0:00:26.5]} 57... g5
{[%clk 0:00:07]} 58. Qe8 {[%clk 0:00:26.2]} 58... Qe5 {[%clk 0:00:07.1]} 59. Qh5
{[%clk 0:00:25.6]} 59... Qf4 {[%clk 0:00:07.1]} 60. Qe8 {[%clk 0:00:25.5]} 60...
Qd2+ {[%clk 0:00:06.2]} 61. Kg3 {[%clk 0:00:24.2]} 61... Qe1+ {[%clk 0:00:06.3]}
62. Kg2 {[%clk 0:00:24]} 62... Qe5 {[%clk 0:00:07.2]} 63. Qh5 {[%clk 0:00:22.1]}
63... Qf5 {[%clk 0:00:07.2]} 64. Qe8 {[%clk 0:00:20.5]} 64... Qe6 {[%clk
0:00:07.7]} 65. Qh5 {[%clk 0:00:19.8]} 65... Qd6 {[%clk 0:00:06.8]} 66. Qe8
{[%clk 0:00:19.8]} 66... Qe6 {[%clk 0:00:05.2]} 67. Qh5 {[%clk 0:00:19.5]} 67...
Qe2+ {[%clk 0:00:05.4]} 68. Kg3 {[%clk 0:00:18.8]} 68... Qe3 {[%clk 0:00:04.5]}
69. Kg2 {[%clk 0:00:15.9]} 69... Qd2+ {[%clk 0:00:02.4]} 70. Kg3 {[%clk
0:00:15.1]} 70... Qf4+ {[%clk 0:00:03.3]} 71. Kg2 {[%clk 0:00:15.2]} 71... Qh4
{[%clk 0:00:04.2]} 72. Qe8 {[%clk 0:00:14.6]} 72... Qf4 {[%clk 0:00:02.7]} 73.
Qxe7+ {[%clk 0:00:14.4]} 73... Kg6 {[%clk 0:00:03.6]} 74. Qe8+ {[%clk
0:00:14.8]} 74... Kg7 {[%clk 0:00:04.2]} 75. Qd7+ {[%clk 0:00:14.3]} 75... Kg6
{[%clk 0:00:04.7]} 76. Qd3+ {[%clk 0:00:14.2]} 76... Kg7 {[%clk 0:00:05.3]} 77.
Qe2 {[%clk 0:00:14.6]} 77... Kg6 {[%clk 0:00:05.9]} 78. Qe8+ {[%clk 0:00:13.4]}
78... Kg7 {[%clk 0:00:06.5]} 79. Qe7+ {[%clk 0:00:14]} 79... Kg6 {[%clk
0:00:07]} 80. Qe8+ {[%clk 0:00:13]} 1/2-1/2